fUST/lending_fUST_20251006
["ID","MTS","AMOUNT","RATE_DAILY","PERIOD"]
[389605067,1759738243260,-163.90357586,0.00021658,2]
[389605068,1759738243269,-500.0,0.00021658,2]
[389605069,1759738243283,-500.0,0.00021658,2]
[389605070,1759738243292,-500.0,0.00021658,2]
[389605071,1759738243301,-500.0,0.00021658,2]
[389605072,1759738243310,-500.0,0.00021658,2]
[389605073,1759738243320,-449.6960984,0.00021658,2]
[389605074,1759738243329,-500.0,0.00021658,2]
[389605075,1759738243339,-627.65958044,0.00021658,2]
[389605076,1759738243348,-500.0,0.00021658,2]
[389605077,1759738243357,-526.56730868,0.00021658,2]
[389605078,1759738243367,-217.40333425,0.00021658,2]
[389605079,1759738243376,-500.0,0.00021658,2]
[389605080,1759738243386,-500.0,0.00021658,2]
[389605081,1759738243395,-500.0,0.00021658,2]
[389605082,1759738243405,-282.23329171,0.00021658,2]
[389605083,1759738243414,-500.0,0.00021658,2]
[389605084,1759738243424,-500.0,0.00021658,2]
[389605085,1759738243434,-500.0,0.00021658,2]
[389605086,1759738243444,-500.0,0.00021665,2]
[389605087,1759738243453,-175.06780388,0.00021669,14]
[389605088,1759738243463,-500.8058613,0.00021676,2]
[389605089,1759738243473,-500.0,0.00021676,2]
[389605090,1759738243482,-500.0,0.00021676,2]
[389605091,1759738243492,-500.42301438,0.00021676,2]
[389605092,1759738243502,-500.0,0.00021676,2]
[389605093,1759738243511,-500.0,0.00021676,2]
[389605094,1759738243521,-500.0,0.00021676,2]
[389605095,1759738243530,-500.0,0.00021676,2]
[389605096,1759738243540,-500.0,0.00021676,2]
[389605097,1759738243549,-500.0,0.00021676,2]
[389605098,1759738243559,-500.42874683,0.00021676,2]
[389605099,1759738243569,-500.0,0.00021676,2]
[389605100,1759738243579,-500.0,0.00021696,2]
[389605101,1759738243589,-341.57966396,0.00021696,2]
[389605102,1759738243599,-500.0,0.00021696,2]
[389605103,1759738243609,-500.0,0.00021696,2]
[389605104,1759738243618,-500.0,0.00021696,2]
[389605105,1759738243628,-500.0,0.00021696,2]
[389605106,1759738243637,-500.0,0.00021696,2]
[389605107,1759738243647,-255.62948787,0.00021696,2]
[389605108,1759738243656,-183.0,0.00021699,5]
[389605109,1759738243665,-500.46169269,0.000217,2]
[389605110,1759738243675,-3000.0,0.00021798,2]
[389605111,1759738243685,-3000.0,0.00021798,2]
[389605112,1759738243694,-3000.0,0.00021798,2]
[389605113,1759738243704,-3000.0,0.00021798,2]
[389605114,1759738243713,-1116.0,0.00021833,2]
[389605115,1759738243723,-3000.0,0.00021868,2]
[389605116,1759738243732,-500.0,0.00021877,2]
[389605117,1759738243741,-588.0,0.000219,2]
[389605118,1759738243750,-1000.0,0.00021921,2]
[389605119,1759738243759,-1000.0,0.00021921,2]
[389605120,1759738243769,-1109.35760191,0.00021921,2]
[389605121,1759738243778,-1000.0,0.00021921,2]
[389605122,1759738243788,-1000.0,0.00021921,2]
[389605123,1759738243797,-1000.0,0.00021921,2]
[389605124,1759738243807,-5899.4,0.00022,2]
[389605125,1759738243816,-8174.04232282,0.00022026,2]
[389605126,1759738243826,-460.0,0.00022084,2]
[389605127,1759738243835,-1094.199999,0.000221,2]
[389605128,1759738243844,-1094.2,0.000221,2]
[389605129,1759738243853,-1094.199999,0.000221,2]
[389605130,1759738243863,-1094.2,0.000221,2]
[389605131,1759738243872,-13194.37,0.000221,2]
[389605132,1759738243881,-1116.0,0.00022107,2]
[389605133,1759738243891,-1000.0,0.00022111,2]
[389605134,1759738243899,-1000.0,0.00022111,2]
[389605135,1759738243909,-1000.0,0.00022143,2]
[389605136,1759738243918,-151.0,0.00022144,2]
[389605137,1759738243927,-20006.03981059,0.00022144,2]
[389605138,1759738243936,-1000.0,0.00022148,2]
[389605139,1759738243946,-1056.68629352,0.00022148,2]
[389605140,1759738243955,-175.06780388,0.00022158,15]
[389605141,1759738243965,-500.0,0.00022203,2]
[389605142,1759738243974,-1000.0,0.00022204,2]
[389605143,1759738243983,-1000.0,0.00022204,2]
[389605144,1759738243993,-1000.0,0.00022204,2]
[389605145,1759738244002,-176.86149284,0.00022204,2]
[389605146,1759738244012,-1000.0,0.00022206,2]
[389605147,1759738244021,-1000.0,0.00022206,2]
[389605148,1759738244031,-1000.0,0.00022206,2]
[389605149,1759738244040,-1000.0,0.00022206,2]
[389605150,1759738244049,-1001.873362,0.00022206,2]
[389605151,1759738244059,-1000.0,0.00022206,2]
[389605152,1759738244068,-1000.0,0.00022206,2]
[389605153,1759738244077,-1000.0,0.00022206,2]
[389605154,1759738244087,-1000.0,0.00022206,2]
[389605155,1759738244096,-1000.0,0.00022206,2]
[389605156,1759738244106,-1000.0,0.00022206,2]
[389605157,1759738244117,-1000.0,0.00022206,2]
[389605158,1759738244126,-1000.0,0.00022206,2]
[389605159,1759738244136,-297.75956605,0.00022206,2]
[389605160,1759738244145,-1000.0,0.00022206,2]
[389605161,1759738244155,-1000.0,0.00022206,2]
[389605162,1759738244164,-1000.0,0.00022206,2]
[389605163,1759738244174,-673.84149087,0.00022206,2]
[389605164,1759738244183,-1000.0,0.00022206,2]
[389605165,1759738244193,-1000.0,0.00022206,2]
[389605166,1759738244203,-501.41419177,0.00022206,2]
[389605167,1759738244212,-1000.0,0.00022206,2]
[389605168,1759738244221,-1000.0,0.00022206,2]
[389605169,1759738244231,-417.82119332,0.00022206,2]
[389605170,1759738244240,-1000.0,0.00022213,2]
[389605171,1759738244249,-1414.45700917,0.00022215,2]
[389605172,1759738244258,-193.16151867,0.00022224,2]
[389605173,1759738244267,-1000.0,0.00022224,2]
[389605174,1759738244277,-1100.44419782,0.00022224,2]
[389605175,1759738244290,-1000.0,0.00022224,2]
[389605176,1759738244299,-587.44585344,0.00022224,2]
[389605177,1759738244308,-1000.0,0.00022224,2]
[389605178,1759738244318,-1000.0,0.00022224,2]
[389605179,1759738244327,-1000.0,0.00022224,2]
[389605180,1759738244338,-1000.0,0.00022224,2]
[389605181,1759738244357,-1000.0,0.00022244,2]
[389605182,1759738244376,-1000.0,0.00022244,2]
[389605183,1759738244400,-1000.0,0.00022244,2]
[389605184,1759738244426,-1002.21063157,0.00022244,2]
[389605185,1759738244450,-1000.0,0.00022244,2]
[389605186,1759738244474,-1000.0,0.00022244,2]
[389605187,1759738244498,-612.0,0.000223,2]
[389605188,1759738244522,-3500.0,0.00022346,2]
[389605189,1759738244545,-1009.83913915,0.00022346,2]
[389605190,1759738244568,-2081.97819948,0.00022346,2]
[389605191,1759738244750,-626.41221792,0.00022346,2]
[389605192,1759738244761,-760.0,0.00022346,2]
[389605193,1759738244772,-31.6095826,0.00022346,2]
[389605194,1759738244782,-329.96481504,0.00022346,2]
[389605195,1759738245319,-3170.03518496,0.00022346,2]
[389605196,1759738245329,-1116.0,0.00022381,2]
[389605197,1759738245338,-3500.0,0.00022416,2]
[389605198,1759738245347,-500.0,0.00022441,2]
[389605199,1759738245356,-1500.0,0.00022468,2]
[389605200,1759738245366,-78.1039874,0.00022468,2]
[389605312,1759738698545,2000.0,0.00028767,120]
[389605395,1759738705450,2000.0,0.00028767,120]
[389605478,1759738712242,2000.0,0.00028767,120]
[389605553,1759738718092,2000.0,0.00028767,120]
[389605624,1759738724130,2000.0,0.00028767,120]
[389606281,1759738832166,2700.18657,0.00028767,120]
[389606445,1759739281961,579.48,0.00027397,120]
[389606446,1759739282205,579.48,0.00027397,120]
[389606447,1759739282448,579.48,0.00027397,120]
[389606448,1759739282691,579.48,0.00027397,120]
[389606449,1759739282931,579.48,0.00027397,120]
[389606450,1759739283193,579.48,0.00027397,120]
[389606451,1759739283443,579.48,0.00027397,120]
[389606452,1759739283696,579.48,0.00027397,120]
[389606453,1759739284134,579.48,0.00027397,120]
[389606454,1759739284201,579.48,0.00027397,120]
[389606455,1759739284435,579.48,0.00027397,120]
[389606456,1759739284691,579.48,0.00027397,120]
[389606457,1759739284922,579.48,0.00027397,120]
[389606458,1759739285154,579.48,0.00027397,120]
[389606459,1759739285422,579.48,0.00027397,120]
[389606460,1759739285661,579.48,0.00027397,120]
[389606461,1759739285897,579.48,0.00027397,120]
[389606462,1759739286264,579.48,0.00027397,120]
[389606463,1759739286495,579.48,0.00027397,120]
[389606464,1759739286724,579.48,0.00027397,120]
[389606465,1759739286956,579.48,0.00027397,120]
[389606466,1759739287179,579.48,0.00027397,120]
[389606467,1759739287411,579.48,0.00027397,120]
[389606468,1759739287638,579.49011957,0.00027397,120]
[389606486,1759739413593,4626.4051176,0.0002012,9]
[389606585,1759739435340,3145.41349,0.0002876,120]
[389606621,1759739438213,-186.21822421,0.00016338,2]
[389606622,1759739438224,-1500.0,0.00016438,2]
[389606623,1759739438234,-300.0,0.00016438,2]
[389606624,1759739438243,-324.0,0.00016838,2]
[389606625,1759739438253,-348.0,0.00017238,2]
[389606626,1759739438263,-300.0,0.00017594,2]
[389606627,1759739438274,-372.0,0.00017638,2]
[389606628,1759739438284,-500.0,0.00017999,2]
[389606629,1759739438294,-500.0,0.00017999,2]
[389606630,1759739438304,-500.0,0.00017999,2]
[389606631,1759739438313,-500.0,0.00017999,2]
[389606632,1759739438323,-500.0,0.00017999,2]
[389606633,1759739438332,-500.0,0.00017999,2]
[389606634,1759739438342,-387.0018564,0.00017999,2]
[389606635,1759739438352,-164.67637258,0.00017999,2]
[389606636,1759739438361,-531.18773665,0.00017999,2]
[389606637,1759739438371,-500.0,0.00017999,2]
[389606638,1759739438381,-500.0,0.00017999,2]
[389606639,1759739438392,-500.0,0.00017999,2]
[389606640,1759739438402,-421.4997108,0.00017999,2]
[389606641,1759739438411,-500.0,0.00017999,2]
[389606642,1759739438420,-500.0,0.00017999,2]
[389606643,1759739438428,-574.46762869,0.00017999,2]
[389606644,1759739438437,-500.0,0.00017999,2]
[389606645,1759739438445,-500.0,0.00017999,2]
[389606646,1759739438453,-500.0,0.00017999,2]
[389606647,1759739438463,-28315.29831884,0.00018,2]
[389606648,1759739438472,-5014.0,0.00018,2]
[389606649,1759739438481,-21399.75624846,0.00018,2]
[389606650,1759739438490,-2988.08756743,0.00018,5]
[389606651,1759739438499,-204.89,0.00018,2]
[389606652,1759739438509,-396.0,0.00018038,2]
[389606653,1759739438519,-151.0,0.000181,2]
[389606654,1759739438528,-204.89,0.000181,2]
[389606655,1759739438538,-1749.99885927,0.00018124,2]
[389606656,1759739438547,-151.0,0.00018143,2]
[389606657,1759739438556,-151.0,0.00018186,2]
[389606658,1759739438566,-151.0,0.0001823,2]
[389606659,1759739438575,-230.05,0.0001823,2]
[389606660,1759739438584,-151.0,0.00018273,2]
[389606661,1759739438595,-533.6495537,0.00018287,2]
[389606662,1759739438604,-293.61728183,0.00018287,2]
[389606663,1759739438613,-160.0,0.00018292,2]
[389606664,1759739438623,-160.0,0.00018292,2]
[389606665,1759739438631,-160.0,0.0001831,2]
[389606666,1759739438641,-151.0,0.00018317,2]
[389606667,1759739438650,-477.79,0.0001835,2]
[389606668,1759739438660,-151.0,0.0001836,2]
[389606669,1759739438669,-234.0,0.00018384,3]
[389606670,1759739438679,-325.71,0.00018394,2]
[389606671,1759739438689,-500.0,0.000184,2]
[389606672,1759739438699,-500.0,0.000184,2]
[389606673,1759739438709,-151.0,0.00018404,2]
[389606674,1759739438718,-420.0,0.00018438,2]
[389606675,1759739438727,-151.0,0.00018447,2]
[389606676,1759739438736,-151.0,0.00018491,2]
[389606677,1759739438746,-325.71,0.00018494,2]
[389606678,1759739438756,-160.0,0.00018516,2]
[389606679,1759739438765,-234.17717776,0.00018516,2]
[389606680,1759739438776,-151.0,0.00018534,2]
[389606681,1759739438788,-151.0,0.00018578,2]
[389606682,1759739438797,-363.10028999,0.00018604,2]
[389606683,1759739438807,-151.0,0.00018621,2]
[389606684,1759739438816,-518.20708058,0.00018623,2]
[389606685,1759739438827,-500.0,0.00018644,2]
[389606686,1759739438837,-151.0,0.00018665,2]
[389606687,1759739438846,-500.0,0.00018674,2]
[389606688,1759739438856,-151.0,0.00018708,2]
[389606689,1759739438867,-500.0,0.0001874,2]
[389606690,1759739438877,-500.0,0.0001874,2]
[389606691,1759739438887,-151.0,0.00018752,2]
[389606692,1759739438897,-151.0,0.00018795,2]
[389606693,1759739438907,-500.0,0.000188,2]
[389606694,1759739438916,-444.0,0.00018838,2]
[389606695,1759739438926,-151.0,0.00018839,2]
[389606696,1759739438936,-500.0,0.00018855,2]
[389606697,1759739438946,-500.0,0.00018855,2]
[389606698,1759739438955,-500.0,0.00018855,2]
[389606699,1759739438965,-500.6200462,0.00018855,2]
[389606700,1759739438975,-500.0,0.00018855,2]
[389606701,1759739438985,-151.0,0.00018882,2]
[389606702,1759739438995,-500.0,0.00018918,2]
[389606703,1759739439005,-151.0,0.00018926,2]
[389606704,1759739439014,-500.0,0.00018948,2]
[389606705,1759739439024,-980.0,0.00018949,2]
[389606706,1759739439033,-630.0,0.00018949,2]
[389606707,1759739439042,-2158.0,0.00018949,2]
[389606708,1759739439052,-423.977,0.00018949,2]
[389606709,1759739439061,-411.084,0.00018949,2]
[389606710,1759739439071,-151.0,0.00018969,2]
[389606711,1759739439080,-500.0,0.0001898,2]
[389606712,1759739439091,-500.0,0.0001898,2]
[389606713,1759739439101,-500.0,0.0001898,2]
[389606714,1759739439110,-500.0,0.0001898,2]
[389606715,1759739439120,-500.0,0.0001898,2]
[389606716,1759739439130,-500.0,0.0001898,2]
[389606717,1759739439139,-501.00167003,0.0001898,2]
[389606718,1759739439148,-500.0,0.0001898,2]
[389606719,1759739439350,-501.331365,0.0001898,2]
[389606720,1759739439374,-500.0,0.0001898,2]
[389606721,1759739439384,-500.0,0.0001898,2]
[389606722,1759739439394,-500.75186401,0.0001898,2]
[389606723,1759739439403,-500.0,0.0001898,2]
[389606724,1759739439413,-500.50022108,0.0001898,2]
[389606725,1759739439423,-500.0,0.0001898,2]
[389606726,1759739439433,-223.21505691,0.00018999,2]
[389606727,1759739439443,-338.8506388,0.00018999,2]
[389606728,1759739439453,-35603.90870611,0.00019,2]
[389606729,1759739439463,-151.0,0.00019013,2]
[389606730,1759739439472,-500.00985826,0.00019033,2]
[389606731,1759739439482,-500.0,0.00019055,2]
[389606732,1759739439492,-500.0,0.00019055,2]
[389606733,1759739439501,-341.55666163,0.00019055,2]
[389606734,1759739439512,-500.0,0.00019055,2]
[389606735,1759739439521,-500.0,0.00019055,2]
[389606736,1759739439533,-151.0,0.00019056,2]
[389606737,1759739439543,-1062.60035708,0.00019094,2]
[389606738,1759739439552,-151.0,0.000191,2]
[389606739,1759739439562,-160.0,0.00019153,2]
[389606740,1759739439571,-2927.0,0.00019167,2]
[389606741,1759739439581,-261.68566268,0.00019178,2]
[389606742,1759739439590,-500.0,0.00019192,2]
[389606743,1759739439600,-420.0,0.00019205,2]
[389606744,1759739439609,-500.0,0.00019222,2]
[389606745,1759739439619,-300.0,0.00019225,2]
[389606746,1759739439629,-300.0,0.00019225,2]
[389606747,1759739439638,-300.0,0.00019225,2]
[389606748,1759739439649,-300.0,0.00019225,2]
[389606749,1759739439658,-300.0,0.00019225,2]
[389606751,1759739439668,-300.0,0.00019225,2]
[389606752,1759739439678,-300.0,0.00019225,2]
[389606754,1759739439687,-300.0,0.00019225,2]
[389606755,1759739439697,-300.0,0.00019225,2]
[389606756,1759739439707,-300.0,0.00019225,2]
[389606757,1759739439717,-300.0,0.00019225,2]
[389606758,1759739439727,-300.0,0.00019225,2]
[389606759,1759739439737,-300.0,0.00019225,2]
[389606760,1759739439746,-300.0,0.00019225,2]
[389606761,1759739439756,-300.0,0.00019225,2]
[389606762,1759739439765,-600.0,0.00019225,2]
[389606763,1759739439775,-468.0,0.00019238,2]
[389606764,1759739439789,-1000.0,0.00019288,2]
[389606766,1759739439799,-1000.0,0.00019288,2]
[389606767,1759739439809,-296.0,0.00019345,2]
[389606768,1759739439818,-1000.0,0.00019348,2]
[389606769,1759739439827,-1000.0,0.00019402,2]
[389606770,1759739439838,-1000.0,0.00019402,2]
[389606771,1759739439848,-1000.0,0.00019402,2]
[389606772,1759739439859,-1000.0,0.00019402,2]
[389606773,1759739439870,-500.0,0.00019466,2]
[389606774,1759739439880,-500.0,0.00019496,2]
[389606775,1759739439890,-500.0,0.00019528,2]
[389606776,1759739439899,-1000.0,0.00019528,2]
[389606777,1759739439909,-510.94577465,0.00019528,2]
[389606778,1759739439919,-1000.0,0.00019528,2]
[389606779,1759739439928,-1000.0,0.00019528,2]
[389606780,1759739439938,-1001.98365039,0.00019528,2]
[389606781,1759739439948,-500.0,0.00019528,2]
[389606782,1759739439957,-1000.0,0.00019528,2]
[389606783,1759739439966,-1000.0,0.00019528,2]
[389606784,1759739439976,-301.00615769,0.00019531,2]
[389606785,1759739439985,-1014.31782585,0.00019602,2]
[389606786,1759739439995,-1000.0,0.00019602,2]
[389606787,1759739440004,-1000.0,0.00019602,2]
[389606788,1759739440015,-492.0,0.00019638,2]
[389606789,1759739440026,-260.0,0.00019701,2]
[389606790,1759739440037,-500.0,0.00019739,2]
[389606791,1759739440048,-500.0,0.0001977,2]
[389606792,1759739440057,-651.88110754,0.000198,2]
[389606793,1759739440066,-1500.0,0.00019836,2]
[389606795,1759739440076,-1500.0,0.00019896,2]
[389606796,1759739440086,-12500.0,0.00019929,7]
[389606797,1759739440096,-12500.0,0.00019938,7]
[389606798,1759739440106,-533.6495537,0.00019938,7]
[389606799,1759739440115,-293.61728183,0.00019938,7]
[389606800,1759739440124,-1500.0,0.0001995,2]
[389606802,1759739440134,-500.0,0.0001995,2]
[389606803,1759739440143,-1500.0,0.0001995,2]
[389606804,1759739440152,-1500.0,0.0001995,2]
[389606805,1759739440161,-430.80311964,0.0001999,2]
[389606806,1759739440171,-229.30196174,0.0002,2]
[389606807,1759739440180,-14516.56567654,0.0002,2]
[389606809,1759739440189,-366.9356084,0.0002,2]
[389606810,1759739440199,-23000.0,0.0002,2]
[389606812,1759739440208,-84156.8733002,0.0002,2]
[389606814,1759739440218,-1166.44326454,0.0002,2]
[389606815,1759739440227,-200.0961582,0.0002,2]
[389606816,1759739440235,-160.0,0.0002,7]
[389606817,1759739440244,-500.0,0.00020013,2]
[389606818,1759739440253,-180.0,0.00020027,3]
[389606819,1759739440262,-516.0,0.00020038,2]
[389606820,1759739440271,-500.0,0.00020044,2]
[389606821,1759739440279,-1500.0,0.00020076,2]
[389606822,1759739440289,-1632.56765264,0.00020076,2]
[389606823,1759739440298,-1500.0,0.00020076,2]
[389606824,1759739440307,-1500.0,0.00020076,2]
[389606825,1759739440316,-2000.0,0.000201,2]
[389606826,1759739440325,-280.2,0.000201,2]
[389606827,1759739440334,-280.4,0.000201,2]
[389606828,1759739440343,-2200.0,0.0002012,2]
[389606829,1759739440351,-703.81341681,0.0002015,2]
[389606830,1759739440360,-1500.0,0.0002015,2]
[389606831,1759739440369,-360.0,0.00020249,2]
[389606832,1759739440378,-500.0,0.00020287,2]
[389606833,1759739440388,-39798.48154326,0.000203,2]
[389606834,1759739440397,-500.0,0.00020318,2]
[389606835,1759739440406,-2000.0,0.00020384,2]
[389606836,1759739440415,-540.0,0.00020438,2]
[389606837,1759739440424,-2000.0,0.00020444,2]
[389606838,1759739440433,-2000.0,0.00020498,2]
[389606839,1759739440442,-2000.0,0.00020498,2]
[389606840,1759739440452,-354.15497231,0.000205,2]
[389606841,1759739440461,-500.0,0.000205,2]
[389606842,1759739440469,-500.0,0.00020561,2]
[389606843,1759739440478,-207.68461608,0.00020592,2]
[389606844,1759739440487,-301.56041544,0.00020593,2]
[389606845,1759739440496,-302.80975651,0.00020593,2]
[389606846,1759739440505,-1372.11587152,0.0002061,2]
[389606847,1759739440514,-2000.0,0.00020624,2]
[389606848,1759739440523,-2000.0,0.00020624,2]
[389606849,1759739440532,-2000.0,0.00020624,2]
[389606850,1759739440541,-179.9460162,0.00020681,2]
[389606851,1759739440550,-314.62,0.00020688,3]
[389606852,1759739440559,-157.31,0.00020688,3]
[389606853,1759739440568,-471.96,0.00020688,3]
[389606854,1759739440577,-2000.0,0.00020698,2]
[389606855,1759739440587,-460.0,0.00020797,2]
[389606856,1759739440595,-2000.0,0.000208,2]
[389606857,1759739440605,-500.01,0.00020835,2]
[389606858,1759739440615,-564.0,0.00020838,2]
[389606859,1759739440625,-253.06882797,0.000209,2]
[389606860,1759739440634,-2500.0,0.00020932,2]
[389606861,1759739440644,-587.0,0.00020963,2]
[389606862,1759739440653,-2500.0,0.00020992,2]
[389606863,1759739440663,-10000.0,0.00021,5]
[389606864,1759739440672,-273.53799949,0.00021,2]
[389606865,1759739440681,-150.999998,0.00021,2]
[389606866,1759739440690,-204.6365322,0.00021,2]
[389606867,1759739440699,-1024.37018468,0.00021008,2]
[389606868,1759739440708,-2223.75108112,0.00021046,2]
[389606869,1759739440718,-2500.0,0.00021046,2]
[389606870,1759739440728,-415.83126983,0.00021048,2]
[389606871,1759739440737,-2000.0,0.000211,2]
[389606872,1759739440746,-720.0,0.00021147,20]
[389606873,1759739440755,-2500.0,0.00021172,2]
[389606874,1759739440764,-2500.0,0.00021172,2]
[389606875,1759739440774,-2500.0,0.00021172,2]
[389606876,1759739440790,-797.39925015,0.00021199,2]
[389606877,1759739440800,-10000.0,0.000212,2]
[389606878,1759739440809,-588.0,0.00021238,2]
[389606879,1759739440819,-2500.0,0.00021246,2]
[389606880,1759739440828,-307.934,0.0002126,2]
[389606881,1759739440837,-560.0,0.00021345,2]
[389606882,1759739440847,-3000.0,0.0002148,2]
[389606883,1759739440856,-3000.0,0.0002154,2]
[389606884,1759739440866,-250.0,0.00021588,2]
[389606885,1759739440875,-3000.0,0.00021594,2]
[389606886,1759739440884,-612.0,0.00021638,2]
[389606887,1759739440893,-183.0,0.00021671,5]
[389606888,1759739440903,-3000.0,0.0002172,2]
[389606889,1759739440912,-3000.0,0.0002172,2]
[389606890,1759739440921,-3000.0,0.0002172,2]
[389606891,1759739440930,-2452.12225702,0.00021754,2]
[389606892,1759739440939,-3000.0,0.00021794,2]
[389606893,1759739440948,-2000.0,0.000218,2]
[389606894,1759739440957,-107386.76306507,0.00021818,2]
[389606895,1759739440966,-726.20057999,0.00021848,2]
[389606896,1759739440976,-500.0,0.00021873,2]
[389606897,1759739440985,-500.46169269,0.00021873,2]
[389606898,1759739440994,-500.0,0.00021873,2]
[389606899,1759739441003,-500.0,0.00021873,2]
[389606900,1759739441013,-500.0,0.00021873,2]
[389606901,1759739441024,-500.0,0.00021873,2]
[389606902,1759739441036,-500.0,0.00021873,2]
[389606903,1759739441046,-500.0,0.00021873,2]
[389606904,1759739441056,-200.1689984,0.00021873,2]
[389606905,1759739441066,-341.57966396,0.00021873,2]
[389606906,1759739441076,-500.0,0.00021873,2]
[389606907,1759739441085,-558.09620544,0.00021873,2]
[389606908,1759739441096,-500.0,0.00021873,2]
[389606909,1759739441105,-500.0,0.00021873,2]
[389606910,1759739441115,-500.0,0.00021873,2]
[389606911,1759739441124,-530.71060533,0.00021873,2]
[389606912,1759739441134,-255.62948787,0.00021873,2]
[389606913,1759739441144,-500.0,0.00021873,2]
[389606914,1759739441154,-500.0,0.00021873,2]
[389606915,1759739441163,-500.0,0.00021873,2]
[389606916,1759739441172,-500.0,0.00021873,2]
[389606917,1759739441182,-500.0,0.00021873,2]
[389606918,1759739441191,-580.16047374,0.00021873,2]
[389606919,1759739441200,-217.40333425,0.00021873,2]
[389606920,1759739441210,-500.0,0.00021873,2]
[389606921,1759739441219,-500.0,0.00021873,2]
[389606922,1759739441228,-504.53120217,0.00021873,2]
[389606923,1759739441238,-500.0,0.00021873,2]
[389606924,1759739441247,-161.53575302,0.00021873,2]
[389606925,1759739441256,-500.0,0.00021873,2]
[389606926,1759739441265,-526.56730868,0.00021873,2]
[389606927,1759739441275,-500.0,0.00021873,2]
[389606928,1759739441284,-500.0,0.00021873,2]
[389606929,1759739441293,-500.0,0.00021873,2]
[389606930,1759739441302,-500.0,0.00021873,2]
[389606931,1759739441311,-500.0,0.00021873,2]
[389606932,1759739441320,-500.0,0.00021873,2]
[389606933,1759739441330,-212.43024565,0.00021873,2]
[389606934,1759739441339,-627.65958044,0.00021873,2]
[389606935,1759739441348,-500.0,0.00021873,2]
[389606936,1759739441357,-510.41421693,0.00021873,2]
[389606937,1759739441367,-500.0,0.00021873,2]
[389606938,1759739441375,-449.6960984,0.00021873,2]
[389606939,1759739441384,-660.0,0.00021893,2]
[389606940,1759739441394,-140134.21651923,0.000219,2]
[389606941,1759739441408,-24736.68420906,0.000219,2]
[389606942,1759739441417,-152.0,0.00021918,2]
[389606943,1759739441426,-152.0,0.00021918,2]
[389606944,1759739441435,-152.0,0.00021918,2]
[389606945,1759739441444,-152.0,0.00021918,2]
[389606946,1759739441453,-152.0,0.00021918,2]
[389606947,1759739441463,-152.0,0.00021918,2]
[389606948,1759739441472,-152.0,0.00021918,2]
[389606949,1759739441481,-152.0,0.00021918,2]
[389606950,1759739441490,-152.0,0.00021918,2]
[389606951,1759739441501,-152.0,0.00021918,2]
[389606952,1759739441511,-152.0,0.00021918,2]
[389606953,1759739441520,-152.0,0.00021918,2]
[389606954,1759739441529,-152.0,0.00021918,2]
[389606955,1759739441538,-152.0,0.00021918,2]
[389606956,1759739441547,-246.22728069,0.00021918,2]
[389606957,1759739441557,-152.0,0.00021918,2]
[389606958,1759739441566,-153.40752507,0.00021918,2]
[389606959,1759739441575,-980.0,0.00021949,2]
[389606960,1759739441584,-630.0,0.00021949,2]
[389606961,1759739441593,-2158.0,0.00021949,2]
[389606962,1759739441603,-410.0,0.00021949,2]